fUSD/lending_fUSD_20250221
["ID","MTS","AMOUNT","RATE_DAILY","PERIOD"]
[353934450,1740155444093,-506.22371347,0.00013424,2]
[353934451,1740155444102,-500.0,0.00013424,2]
[353934452,1740155444111,-500.0,0.00013424,2]
[353934453,1740155444120,-582.6,0.00013424,2]
[353934454,1740155444130,-500.0,0.00013424,2]
[353934455,1740155444139,-500.0,0.00013424,2]
[353934456,1740155444149,-500.0,0.00013424,2]
[353934457,1740155444159,-500.0,0.00013424,2]
[353934458,1740155444168,-924.57,0.00013424,2]
[353934459,1740155444179,-502.63197481,0.00013424,2]
[353934460,1740155444188,-500.0,0.00013424,2]
[353934461,1740155444198,-500.0,0.00013424,2]
[353934462,1740155444207,-500.0,0.00013424,2]
[353934463,1740155444217,-500.0,0.00013424,2]
[353934464,1740155444226,-542.54,0.00013424,2]
[353934465,1740155444235,-500.0,0.00013424,2]
[353934466,1740155444244,-500.0,0.00013424,2]
[353934467,1740155444253,-500.0,0.00013424,2]
[353934468,1740155444263,-500.0,0.00013424,2]
[353934469,1740155444272,-500.0,0.00013424,2]
[353934470,1740155444281,-500.0,0.00013424,2]
[353934471,1740155444291,-500.0,0.00013424,2]
[353934472,1740155444302,-500.0,0.00013424,2]
[353934473,1740155444311,-547.53,0.00013424,2]
[353934474,1740155444320,-500.0,0.00013424,2]
[353934475,1740155444330,-500.0,0.00013424,2]
[353934476,1740155444340,-500.0,0.00013424,2]
[353934477,1740155444350,-500.0,0.00013424,2]
[353934478,1740155444366,-500.0,0.00013424,2]
[353934479,1740155444375,-737.18,0.00013424,2]
[353934480,1740155444384,-500.0,0.00013424,2]
[353934481,1740155444393,-500.0,0.00013424,2]
[353934482,1740155444403,-500.0,0.00013424,2]
[353934483,1740155444412,-1172.11,0.00013424,2]
[353934484,1740155444421,-500.0,0.00013424,2]
[353934485,1740155444430,-500.0,0.00013424,2]
[353934486,1740155444439,-506.11978915,0.00013424,2]
[353934487,1740155444448,-500.0,0.00013424,2]
[353934488,1740155444457,-500.0,0.00013424,2]
[353934489,1740155444466,-500.0,0.00013424,2]
[353934490,1740155444475,-500.0,0.00013424,2]
[353934491,1740155444484,-500.0,0.00013424,2]
[353934492,1740155444494,-500.0,0.00013424,2]
[353934493,1740155444502,-500.0,0.00013424,2]
[353934494,1740155444512,-500.0,0.00013424,2]
[353934495,1740155444521,-798.93,0.00013424,2]
[353934496,1740155444531,-500.0,0.00013424,2]
[353934497,1740155444540,-884.18,0.00013424,2]
[353934498,1740155444551,-465.50442279,0.00013424,2]
[353934499,1740155444560,-549.45,0.00013424,2]
[353934500,1740155444569,-549.45,0.00013424,2]
[353934501,1740155444578,-500.0,0.00013424,2]
[353934502,1740155444588,-500.0,0.00013424,2]
[353934503,1740155444596,-500.0,0.00013424,2]
[353934504,1740155444606,-682.85,0.00013424,2]
[353934505,1740155444614,-500.51609642,0.00013424,2]
[353934506,1740155444623,-500.0,0.00013424,2]
[353934507,1740155444633,-663.82,0.00013424,2]
[353934508,1740155444641,-500.0,0.00013424,2]
[353934509,1740155444651,-500.0,0.00013424,2]
[353934510,1740155444660,-500.0,0.00013424,2]
[353934511,1740155444669,-500.0,0.00013424,2]
[353934512,1740155444679,-500.0,0.00013424,2]
[353934513,1740155444688,-500.0,0.00013424,2]
[353934514,1740155444697,-500.0,0.00013424,2]
[353934515,1740155444706,-500.0,0.00013424,2]
[353934516,1740155444715,-500.0,0.00013424,2]
[353934517,1740155444724,-500.0,0.00013424,2]
[353934518,1740155444733,-500.0,0.00013424,2]
[353934519,1740155444742,-635.65,0.00013424,2]
[353934520,1740155444750,-500.0,0.00013424,2]
[353934521,1740155444759,-665.05,0.00013424,2]
[353934522,1740155444768,-500.0,0.00013424,2]
[353934523,1740155444778,-515.68317056,0.00013424,2]
[353934524,1740155444790,-500.0,0.00013424,2]
[353934525,1740155444801,-500.0,0.00013424,2]
[353934526,1740155444811,-505.39347653,0.00013424,2]
[353934527,1740155444820,-500.0,0.00013424,2]
[353934528,1740155444831,-500.0,0.00013424,2]
[353934529,1740155444840,-504.08158652,0.00013424,2]
[353934530,1740155444850,-500.0,0.00013424,2]
[353934531,1740155444859,-761.67,0.00013424,2]
[353934532,1740155444869,-500.0,0.00013424,2]
[353934533,1740155444878,-500.0,0.00013424,2]
[353934534,1740155444889,-500.0,0.00013424,2]
[353934535,1740155444899,-500.0,0.00013424,2]
[353934536,1740155444908,-500.0,0.00013424,2]
[353934537,1740155444918,-500.0,0.00013424,2]
[353934538,1740155444928,-608.67,0.00013424,2]
[353934539,1740155444937,-500.0,0.00013424,2]
[353934540,1740155444947,-500.0,0.00013424,2]
[353934541,1740155444958,-500.0,0.00013424,2]
[353934542,1740155444967,-500.0,0.00013424,2]
[353934543,1740155444976,-500.0,0.00013424,2]
[353934544,1740155444986,-578.85093194,0.00013424,2]
[353934545,1740155444995,-500.0,0.00013424,2]
[353934546,1740155445004,-500.0,0.00013424,2]
[353934547,1740155445014,-500.0,0.00013424,2]
[353934548,1740155445023,-500.0,0.00013424,2]
[353934549,1740155445032,-500.0,0.00013424,2]
[353934550,1740155445042,-500.0,0.00013424,2]
[353934551,1740155445053,-500.0,0.00013424,2]
[353934552,1740155445063,-1016.13,0.00013424,2]
[353934553,1740155445073,-500.0,0.00013424,2]
[353934554,1740155445082,-500.0,0.00013424,2]
[353934555,1740155445092,-500.0,0.00013424,2]
[353934556,1740155445102,-609.66,0.00013424,2]
[353934557,1740155445111,-500.0,0.00013424,2]
[353934558,1740155445121,-500.0,0.00013424,2]
[353934559,1740155445130,-500.0,0.00013424,2]
[353934560,1740155445140,-500.0,0.00013424,2]
[353934561,1740155445149,-500.0,0.00013424,2]
[353934562,1740155445159,-701.11,0.00013424,2]
[353934563,1740155445168,-620.61,0.00013424,2]
[353934564,1740155445178,-500.0,0.00013424,2]
[353934565,1740155445187,-154.90988496,0.00013424,2]
[353934566,1740155445197,-500.0,0.00013424,2]
[353934567,1740155445306,-500.0,0.00013424,2]
[353934568,1740155445317,-500.0,0.00013424,2]
[353934569,1740155445326,-500.0,0.00013424,2]
[353934570,1740155445335,-533.23,0.00013424,2]
[353934571,1740155445345,-500.0,0.00013424,2]
[353934572,1740155445354,-500.0,0.00013424,2]
[353934573,1740155445363,-500.0,0.00013424,2]
[353934574,1740155445373,-216.82367758,0.00013424,2]
[353934575,1740155445382,-507.8,0.00013424,2]
[353934576,1740155445391,-500.0,0.00013424,2]
[353934577,1740155445401,-498.97114574,0.00013424,2]
[353934578,1740155445410,-550.62,0.00013424,2]
[353934579,1740155445419,-682.04,0.00013424,2]
[353934580,1740155445429,-500.0,0.00013424,2]
[353934581,1740155445438,-500.0,0.00013424,2]
[353934582,1740155445450,-500.0,0.00013424,2]
[353934583,1740155445459,-500.0,0.00013424,2]
[353934584,1740155445468,-781.24,0.00013424,2]
[353934585,1740155445478,-254.91259575,0.00013424,2]
[353934586,1740155445487,-799.21,0.00013424,2]
[353934587,1740155445496,-500.0,0.00013424,2]
[353934588,1740155445505,-803.48,0.00013424,2]
[353934589,1740155445515,-641.85,0.00013424,2]
[353934590,1740155445525,-500.0,0.00013424,2]
[353934591,1740155445535,-500.0,0.00013424,2]
[353934592,1740155445545,-637.28,0.00013424,2]
[353934593,1740155445554,-750.13,0.00013424,2]
[353934594,1740155445563,-500.0,0.00013424,2]
[353934595,1740155445573,-500.0,0.00013424,2]
[353934596,1740155445582,-500.0,0.00013424,2]
[353934597,1740155445591,-501.4427474,0.00013424,2]
[353934598,1740155445601,-550.99,0.00013424,2]
[353934599,1740155445610,-500.0,0.00013424,2]
[353934600,1740155445620,-153.946184,0.00013424,2]
[353934601,1740155445630,-500.0,0.00013424,2]
[353934602,1740155445639,-499.35715886,0.00013424,2]
[353934603,1740155445649,-500.0,0.00013424,2]
[353934604,1740155445666,-500.0,0.00013424,2]
[353934605,1740155445677,-500.0,0.00013424,2]
[353934606,1740155445687,-500.0,0.00013424,2]
[353934607,1740155445697,-500.0,0.00013424,2]
[353934608,1740155445706,-161.183653,0.00013424,2]
[353934609,1740155445716,-500.0,0.00013424,2]
[353934610,1740155445725,-500.0,0.00013424,2]
[353934611,1740155445734,-686.99,0.00013424,2]
[353934612,1740155445743,-689.95,0.00013424,2]
[353934613,1740155445754,-603.22,0.00013424,2]
[353934614,1740155445763,-2489.62,0.00013424,2]
[353934615,1740155445773,-500.0,0.00013424,2]
[353934616,1740155445783,-714.56,0.00013424,2]
[353934617,1740155445795,-500.0,0.00013424,2]
[353934618,1740155445805,-500.0,0.00013424,2]
[353934619,1740155445814,-500.0,0.00013424,2]
[353934620,1740155445824,-500.0,0.00013424,2]
[353934621,1740155445833,-1288.33,0.00013424,2]
[353934622,1740155445844,-6282.2,0.00013424,2]
[353934623,1740155445853,-500.0,0.00013424,2]
[353934624,1740155445863,-500.0,0.00013424,2]
[353934625,1740155445873,-500.0,0.00013424,2]
[353934626,1740155445883,-750.55,0.00013424,2]
[353934627,1740155445892,-500.0,0.00013424,2]
[353934628,1740155445902,-804.19,0.00013424,2]
[353934629,1740155445911,-2351.99,0.00013424,2]
[353934630,1740155445919,-2085.79,0.00013424,2]
[353934631,1740155445929,-500.0,0.00013424,2]
[353934632,1740155445938,-561.38,0.00013424,2]
[353934633,1740155445947,-797.77,0.00013424,2]
[353934634,1740155445956,-896.62,0.00013424,2]
[353934635,1740155445965,-501.78,0.00013424,2]
[353934636,1740155445974,-1795.28,0.00013424,2]
[353934637,1740155445991,-770.1,0.00013424,2]
[353934638,1740155446007,-1499.07,0.00013424,2]
[353934639,1740155446025,-500.0,0.00013424,2]
[353934640,1740155446045,-2383.22,0.00013424,2]
[353934641,1740155446059,-500.0,0.00013424,2]
[353934642,1740155446077,-500.0,0.00013424,2]
[353934643,1740155446094,-607.71,0.00013424,2]
[353934644,1740155446111,-1969.97,0.00013424,2]
[353934645,1740155446132,-1551.06,0.00013424,2]
[353934647,1740155446147,-500.0,0.00013424,2]
[353934649,1740155446166,-500.0,0.00013424,2]
[353934650,1740155446180,-500.0,0.00013424,2]
[353934651,1740155446194,-500.0,0.00013424,2]
[353934652,1740155446211,-2276.84,0.00013424,2]
[353934653,1740155446226,-362.49654168,0.00013424,2]
[353934654,1740155446242,-1248.61,0.00013424,2]
[353934655,1740155446256,-500.0,0.00013424,2]
[353934656,1740155446271,-589.4,0.00013424,2]
[353934657,1740155446285,-845.3,0.00013424,2]
[353934658,1740155446304,-5172.7,0.00013424,2]
[353934659,1740155446320,-500.0,0.00013424,2]
[353934660,1740155446336,-2872.1,0.00013424,2]
[353934661,1740155446351,-500.0,0.00013424,2]
[353934662,1740155446369,-1498.57,0.00013424,2]
[353934663,1740155446384,-803.95,0.00013424,2]
[353934664,1740155446399,-500.0,0.00013424,2]
[353934665,1740155446415,-1316.57,0.00013424,2]
[353934666,1740155446429,-500.0,0.00013424,2]
[353934667,1740155446444,-500.0,0.00013424,2]
[353934668,1740155446458,-500.0,0.00013424,2]
[353934669,1740155446472,-504.89439029,0.00013424,2]
[353934670,1740155446487,-1493.91,0.00013424,2]
[353934671,1740155446501,-500.0,0.00013424,2]
[353934672,1740155446515,-500.0,0.00013424,2]
[353934673,1740155446530,-1318.81,0.00013424,2]
[353934674,1740155446547,-1275.29,0.00013424,2]
[353934675,1740155446562,-500.0,0.00013424,2]
[353934676,1740155446576,-500.0,0.00013424,2]
[353934677,1740155446591,-1723.12,0.00013424,2]
[353934678,1740155446606,-1397.22,0.00013424,2]
[353934679,1740155446620,-712.38,0.00013424,2]
[353934680,1740155446635,-500.0,0.00013424,2]
[353934681,1740155446650,-500.0,0.00013424,2]
[353934682,1740155446665,-500.0,0.00013424,2]
[353934683,1740155446679,-500.0,0.00013424,2]
[353934684,1740155446694,-732.9,0.00013424,2]
[353934685,1740155446709,-1116.17,0.00013424,2]
[353934686,1740155446724,-1617.68,0.00013424,2]
[353934687,1740155446739,-642.15,0.00013424,2]
[353934688,1740155446757,-500.0,0.00013424,2]
[353934689,1740155446772,-500.0,0.00013424,2]
[353934690,1740155446791,-1521.34,0.00013424,2]
[353934691,1740155446808,-992.69,0.00013424,2]
[353934692,1740155446824,-500.0,0.00013424,2]
[353934693,1740155446838,-970.08,0.00013424,2]
[353934694,1740155446852,-2015.45,0.00013424,2]
[353934695,1740155446871,-1318.58,0.00013424,2]
[353934696,1740155446884,-500.0,0.00013424,2]
[353934697,1740155446899,-720.6,0.00013424,2]
[353934698,1740155446915,-604.26875464,0.00013424,2]
[353934699,1740155446928,-500.0,0.00013424,2]
[353934700,1740155446943,-504.89483573,0.00013424,2]
[353934701,1740155446958,-500.0,0.00013424,2]
[353934702,1740155446973,-500.0,0.00013424,2]
[353934703,1740155446988,-1704.21,0.00013424,2]
[353934704,1740155447003,-500.0,0.00013424,2]
[353934705,1740155447017,-1905.37,0.00013424,2]
[353934706,1740155447032,-1778.31,0.00013424,2]
[353934707,1740155447046,-500.0,0.00013424,2]
[353934708,1740155447061,-1075.4,0.00013424,2]
[353934709,1740155447217,-500.0,0.00013424,2]
[353934710,1740155447231,-1586.97,0.00013424,2]
[353934711,1740155447240,-1937.86,0.00013424,2]
[353934712,1740155447250,-1973.1,0.00013424,2]
[353934713,1740155447259,-1456.17,0.00013424,2]
[353934714,1740155447268,-1595.94,0.00013424,2]
[353934715,1740155447278,-500.0,0.00013424,2]
[353934716,1740155447288,-500.0,0.00013424,2]
[353934717,1740155447299,-1351.87,0.00013424,2]
[353934718,1740155447309,-805.76,0.00013424,2]
[353934719,1740155447318,-500.0,0.00013424,2]
[353934720,1740155447328,-2251.24,0.00013424,2]
[353934721,1740155447337,-1706.16,0.00013424,2]
[353934722,1740155447347,-3126.92,0.00013424,2]
[353934723,1740155447356,-500.0,0.00013424,2]
[353934724,1740155447366,-1241.84,0.00013424,2]
[353934725,1740155447375,-2290.81,0.00013424,2]
[353934726,1740155447384,-745.31,0.00013424,2]
[353934727,1740155447393,-500.0,0.00013424,2]
[353934728,1740155447402,-500.0,0.00013424,2]
[353934729,1740155447412,-500.0,0.00013424,2]
[353934730,1740155447422,-852.34,0.00013424,2]
[353934731,1740155447432,-358.6845447,0.00013424,2]
[353934732,1740155447441,-153.946184,0.00013424,2]
[353934733,1740155447449,-746.9,0.00013424,2]
[353934734,1740155447458,-500.0,0.00013424,2]
[353934735,1740155447467,-535.69654043,0.00013424,2]
[353934736,1740155447477,-500.0,0.00013424,2]
[353934737,1740155447486,-500.0,0.00013424,2]
[353934738,1740155447495,-683.22,0.00013424,2]
[353934739,1740155447505,-500.0,0.00013424,2]
[353934740,1740155447514,-500.0,0.00013424,2]
[353934741,1740155447523,-845.21,0.00013424,2]
[353934742,1740155447533,-500.0,0.00013424,2]
[353934743,1740155447542,-500.0,0.00013424,2]
[353934744,1740155447552,-732.59,0.00013424,2]
[353934745,1740155447561,-2449.76,0.00013424,2]
[353934746,1740155447571,-500.0,0.00013424,2]
[353934747,1740155447580,-694.54,0.00013424,2]
[353934748,1740155447591,-1849.52,0.00013424,2]
[353934749,1740155447600,-500.0,0.00013424,2]
[353934750,1740155447610,-500.0,0.00013424,2]
[353934751,1740155447619,-1677.16,0.00013424,2]
[353934752,1740155447629,-500.0,0.00013424,2]
[353934753,1740155447638,-1273.31,0.00013424,2]
[353934754,1740155447648,-500.0,0.00013424,2]
[353934755,1740155447659,-161.183652,0.00013424,2]
[353934756,1740155447668,-693.95,0.00013424,2]
[353934757,1740155447677,-500.0,0.00013424,2]
[353934758,1740155447687,-500.0,0.00013424,2]
[353934759,1740155447697,-500.0,0.00013424,2]
[353934760,1740155447706,-500.0,0.00013424,2]
[353934761,1740155447715,-420.50485896,0.00013424,2]
[353934762,1740155447724,-159.647054,0.00013424,2]
[353934763,1740155447733,-500.0,0.00013424,2]
[353934764,1740155447742,-2190.66,0.00013424,2]
[353934765,1740155447751,-985.22,0.00013424,2]
[353934766,1740155447760,-2015.31,0.00013424,2]
[353934767,1740155447769,-924.51,0.00013424,2]
[353934768,1740155447779,-2391.61,0.00013424,2]
[353934769,1740155447788,-676.87,0.00013424,2]
[353934770,1740155447801,-500.0,0.00013424,2]
[353934771,1740155447811,-500.0,0.00013424,2]
[353934772,1740155447821,-865.83,0.00013424,2]
[353934773,1740155447830,-500.0,0.00013424,2]
[353934774,1740155447839,-1046.27,0.00013424,2]
[353934775,1740155447849,-961.68,0.00013424,2]
[353934776,1740155447859,-500.0,0.00013424,2]
[353934777,1740155447870,-500.0,0.00013424,2]
[353934778,1740155447880,-551.12,0.00013424,2]
[353934779,1740155447890,-500.0,0.00013424,2]
[353934780,1740155447899,-2334.29,0.00013424,2]
[353934781,1740155447908,-1664.23,0.00013424,2]
[353934782,1740155447918,-500.0,0.00013424,2]
[353934783,1740155447927,-500.0,0.00013424,2]
[353934784,1740155447936,-500.0,0.00013424,2]
[353934785,1740155447950,-1427.45,0.00013424,2]
[353934786,1740155447959,-1000.13,0.00013424,2]
[353934787,1740155447968,-500.0,0.00013424,2]
[353934788,1740155447978,-218.63100634,0.00013424,2]
[353934789,1740155447988,-829.51,0.00013424,2]
[353934790,1740155447997,-1312.33,0.00013424,2]
[353934791,1740155448006,-3157.37,0.00013424,2]
[353934792,1740155448016,-500.0,0.00013424,2]
[353934793,1740155448025,-2320.36,0.00013424,2]
[353934794,1740155448035,-500.0,0.00013424,2]
[353934795,1740155448045,-500.0,0.00013424,2]
[353934796,1740155448055,-1765.9,0.00013424,2]
[353934797,1740155448065,-896.22,0.00013424,2]
[353934798,1740155448075,-1173.96,0.00013424,2]
[353934799,1740155448084,-2048.4,0.00013424,2]
[353934800,1740155448094,-1785.81,0.00013424,2]
[353934801,1740155448104,-5517.42,0.00013424,2]
[353934802,1740155448114,-500.0,0.00013424,2]
[353934803,1740155448124,-4025.15,0.00013424,2]
[353934804,1740155448135,-500.0,0.00013424,2]
[353934805,1740155448146,-500.0,0.00013424,2]
[353934806,1740155448156,-1984.08,0.00013424,2]
[353934807,1740155448166,-1638.98,0.00013424,2]
[353934808,1740155448176,-500.0,0.00013424,2]
[353934809,1740155448185,-500.0,0.00013424,2]
[353934810,1740155448195,-500.0,0.00013424,2]
[353934811,1740155448205,-500.0,0.00013424,2]
[353934812,1740155448214,-500.0,0.00013424,2]
[353934813,1740155448224,-500.0,0.00013424,2]
[353934814,1740155448233,-939.08,0.00013424,2]
[353934815,1740155448243,-500.0,0.00013424,2]
[353934816,1740155448253,-1259.24,0.00013424,2]
[353934817,1740155448263,-500.0,0.00013424,2]
[353934818,1740155448273,-500.0,0.00013424,2]
[353934819,1740155448283,-710.73,0.00013424,2]
[353934820,1740155448293,-3508.18,0.00013424,2]
[353934821,1740155448304,-500.0,0.00013424,2]
[353934822,1740155448314,-1290.39,0.00013424,2]
[353934823,1740155448324,-500.0,0.00013424,2]
[353934824,1740155448333,-500.0,0.00013424,2]
[353934825,1740155448342,-500.0,0.00013424,2]
[353934826,1740155448352,-500.0,0.00013424,2]
[353934827,1740155448361,-1878.82,0.00013424,2]
[353934828,1740155448371,-500.0,0.00013424,2]
[353934829,1740155448380,-768.75,0.00013424,2]
[353934830,1740155448389,-1056.2,0.00013424,2]
[353934831,1740155448399,-500.0,0.00013424,2]
[353934832,1740155448408,-1151.85,0.00013424,2]
[353934833,1740155448418,-599.36,0.00013424,2]
[353934834,1740155448427,-600.92,0.00013424,2]
[353934835,1740155448436,-500.0,0.00013424,2]
[353934836,1740155448445,-1060.79,0.00013424,2]
[353934837,1740155448454,-500.0,0.00013424,2]
[353934838,1740155448463,-1622.47,0.00013424,2]
[353934839,1740155448472,-1407.76,0.00013424,2]
[353934840,1740155448482,-1007.73677694,0.00013424,2]
[353934841,1740155448492,-1072.13534879,0.00013424,2]
[353934842,1740155448501,-508.11,0.00013424,2]
[353934843,1740155448513,-150.0,0.00013444,2]
[353934844,1740155448523,-3959.57442582,0.00013449,2]
[353934845,1740155448535,-20000.0,0.00013456,2]
[353934846,1740155448548,-3959.57442582,0.00013491,2]
[353934847,1740155448558,-5891.61028456,0.00013498,2]
[353934848,1740155448568,-4130.0,0.000135,2]
[353934849,1740155448578,-1400.0,0.000135,4]
[353934850,1740155448588,-300.32236525,0.000135,5]
[353934851,1740155448598,-266.2,0.00013503,2]
[353934852,1740155448608,-3959.57442582,0.00013533,2]
[353934853,1740155448618,-300.0,0.00013539,2]
[353934854,1740155448628,-150.0,0.00013539,2]
[353934855,1740155448638,-3918.0,0.00013539,2]
[353934856,1740155448648,-1014.202,0.00013539,2]
[353934857,1740155448657,-570.12,0.00013539,2]
[353934858,1740155448667,-3959.57442582,0.00013575,2]
[353934859,1740155448676,-150.0,0.00013579,2]
[353934860,1740155448686,-432.31286095,0.00013589,2]
[353934861,1740155448696,-150.0,0.00013593,2]
[353934862,1740155448705,-1542.349,0.000136,2]
[353934863,1740155448715,-157.593,0.000136,2]
[353934864,1740155448724,-1000.0,0.000136,2]
[353934865,1740155448733,-24744.58956059,0.000136,2]
[353934866,1740155448743,-4169.57496808,0.000136,2]
[353934867,1740155448752,-453.92912298,0.000136,2]
[353934868,1740155448762,-2200.0,0.000136,4]
[353934869,1740155448772,-500.0,0.00013608,2]
[353934870,1740155448784,-2000.0,0.00013608,2]
[353934871,1740155448796,-200.0,0.00013608,2]
[353934872,1740155448809,-3959.57442582,0.00013616,2]
[353934873,1740155448819,-500.0,0.00013657,2]
[353934874,1740155448920,-3959.57442582,0.00013658,2]
[353934875,1740155448940,-1000.0,0.00013665,2]
[353934876,1740155448950,-500.0,0.00013666,2]
[353934877,1740155448959,-500.0,0.00013666,2]
[353934878,1740155448969,-500.0,0.00013666,2]
[353934879,1740155448978,-500.0,0.00013666,2]
[353934880,1740155448988,-500.0,0.00013666,2]
[353934881,1740155448998,-460.4109,0.00013666,2]
[353934882,1740155449008,-219.89780956,0.0001367,2]
[353934883,1740155449017,-167.796153,0.00013671,2]
[353934884,1740155449027,-151.0,0.00013671,2]
[353934885,1740155449037,-181.86833,0.00013671,2]
[353934886,1740155449050,-151.0,0.00013671,2]
[353934887,1740155449059,-151.0,0.00013671,2]
[353934888,1740155449068,-151.0,0.00013671,2]
[353934889,1740155449078,-224.42214,0.00013671,2]
[353934890,1740155449087,-151.0,0.00013671,2]
[353934891,1740155449097,-151.0,0.00013671,2]
[353934892,1740155449107,-151.0,0.00013671,2]
[353934893,1740155449117,-1036.614524,0.00013671,2]
[353934894,1740155449127,-53816.0,0.00013671,2]
[353934895,1740155449137,-2576.0,0.00013671,2]
[353934896,1740155449147,-251253.0,0.00013671,2]
[353934897,1740155449156,-503.23320906,0.00013673,2]
[353934898,1740155449170,-500.0,0.00013673,2]
[353934899,1740155449180,-2003.0,0.0001369,3]
[353934900,1740155449189,-584.20017439,0.00013694,2]
[353934901,1740155449199,-1878.82,0.00013695,2]
[353934902,1740155449209,-500.0,0.00013696,2]
[353934903,1740155449219,-500.0,0.00013696,2]
[353934904,1740155449229,-500.0,0.00013696,2]
[353934905,1740155449238,-281.12710478,0.00013696,2]
[353934906,1740155449248,-501.52702874,0.00013696,2]
[353934907,1740155449258,-500.0,0.00013696,2]
[353934908,1740155449268,-500.0,0.00013696,2]
[353934909,1740155449278,-500.0,0.00013696,2]
[353934910,1740155449288,-502.25126165,0.00013696,2]
[353934911,1740155449300,-346.28857441,0.00013696,2]
[353934912,1740155449310,-500.0,0.00013696,2]
[353934913,1740155449320,-500.0,0.00013696,2]
[353934914,1740155449329,-500.0,0.00013696,2]
[353934915,1740155449339,-500.0,0.00013696,2]
[353934916,1740155449348,-500.0,0.00013696,2]
[353934917,1740155449357,-500.0,0.00013696,2]
[353934918,1740155449366,-505.07806367,0.00013696,2]
[353934919,1740155449375,-500.0,0.00013696,2]
[353934920,1740155449384,-500.0,0.00013696,2]
[353934921,1740155449394,-500.0,0.00013696,2]
[353934922,1740155449403,-500.0,0.00013696,2]
[353934923,1740155449412,-500.0,0.00013696,2]
[353934924,1740155449421,-500.0,0.00013696,2]
[353934925,1740155449430,-500.0,0.00013696,2]
[353934926,1740155449439,-500.0,0.00013696,2]
[353934927,1740155449449,-500.0,0.00013696,2]
[353934928,1740155449458,-500.0,0.00013696,2]
[353934929,1740155449468,-500.0,0.00013696,2]
[353934930,1740155449478,-500.0,0.00013696,2]
[353934931,1740155449487,-500.0,0.00013696,2]
[353934932,1740155449496,-503.63377383,0.00013696,2]
[353934933,1740155449507,-500.0,0.00013696,2]
[353934934,1740155449516,-500.0,0.00013696,2]
[353934935,1740155449526,-500.0,0.00013696,2]
[353934936,1740155449535,-504.15082746,0.00013696,2]
[353934937,1740155449546,-500.0,0.00013696,2]
[353934938,1740155449555,-504.83603899,0.00013696,2]
[353934939,1740155449565,-500.0,0.00013696,2]
[353934940,1740155449574,-510.10600003,0.00013696,2]
[353934941,1740155449583,-500.0,0.00013696,2]
[353934942,1740155449592,-500.0,0.00013696,2]
[353934943,1740155449601,-500.0,0.00013696,2]
[353934944,1740155449610,-500.0,0.00013696,2]
[353934945,1740155449619,-500.0,0.00013696,2]
[353934946,1740155449628,-500.0,0.00013696,2]
[353934947,1740155449637,-500.0,0.00013696,2]
[353934948,1740155449647,-500.0,0.00013696,2]
[353934949,1740155449655,-500.0,0.00013696,2]
[353934950,1740155449664,-500.63281688,0.00013696,2]
[353934951,1740155449673,-500.0,0.00013696,2]